bitfinex/quotes_SOLUSD_20250310
["timestamp","ask_amount","ask_price","bid_price","bid_amount"]
[1741627396987,221.24,119.69,119.68,93.14372211]
[1741627397175,221.24,119.69,119.68,215.84769411]
[1741627397381,221.26,119.76,119.68,215.84769411]
[1741627397578,221.26,119.76,119.72,73.14372211]
[1741627397984,221.26,119.76,119.72,20.0]
[1741627398185,221.26,119.76,119.75,20.0]
[1741627398387,221.26,119.76,119.75,73.14372211]
[1741627399119,221.26,119.76,119.75,176.94372211]
[1741627399811,221.26,119.76,119.75,204.22839411]
[1741627400011,221.26,119.76,119.75,185.29442211]
[1741627400210,221.26,119.76,119.75,73.14372211]
[1741627400412,221.26,119.76,119.75,81.49442211]
[1741627400786,221.26,119.76,119.75,73.14372211]
[1741627401791,221.26,119.76,119.71,143.33324886]
[1741627402113,221.26,119.76,119.75,20.0]
[1741627402319,221.26,119.76,119.72,73.14372211]
[1741627402518,221.26,119.76,119.66,8.357]
[1741627402519,73.14372211,119.73,119.66,8.357]
[1741627402697,13.78,119.72,119.68,73.14372211]
[1741627402898,13.78,119.72,119.69,73.14372211]
[1741627403091,13.78,119.72,119.71,73.14372211]
[1741627403613,13.78,119.72,119.7,73.14372211]
[1741627403783,13.78,119.72,119.71,73.14372211]
[1741627405093,13.78,119.72,119.71,176.94372211]
[1741627405410,13.78,119.72,119.71,103.8]
[1741627405606,13.78,119.72,119.68,8.3556]
[1741627405607,13.78,119.72,119.68,73.14372211]
[1741627405808,13.78,119.72,119.68,81.49912211]
[1741627406112,13.78,119.72,119.69,73.14372211]
[1741627406521,13.78,119.72,119.71,93.14372211]
[1741627406812,13.78,119.72,119.71,20.0]
[1741627408315,22.1328,119.72,119.68,73.14372211]
[1741627408616,22.1328,119.72,119.56,20.0]
[1741627408617,73.14372211,119.7,119.62,124.699]
[1741627408818,18.79181043,119.71,119.65,73.14372211]
[1741627408999,34.1335832,119.72,119.67,73.14372211]
[1741627409197,73.14372211,119.71,119.66,93.14372211]
[1741627409517,73.14372211,119.71,119.66,20.0]
[1741627409817,73.14372211,119.71,119.59,8.3619]
[1741627409818,29.2421,119.69,119.59,8.3619]
[1741627409997,73.14372211,119.67,119.61,73.14372211]
[1741627410319,235.04,119.66,119.62,20.0]
[1741627410494,235.04,119.66,119.62,73.14372211]
[1741627410893,221.26,119.65,119.63,73.14372211]
[1741627411198,221.26,119.65,119.64,73.14372211]
[1741627411920,302.76172211,119.65,119.6,73.14372211]
[1741627412090,13.78,119.64,119.6,73.14372211]
[1741627412692,221.3,119.64,119.62,73.14372211]
[1741627412903,221.3,119.64,119.63,73.14372211]
[1741627413127,221.3,119.64,119.6,73.14372211]
[1741627413496,221.3,119.64,119.58,73.14372211]
[1741627413497,294.44372211,119.64,119.58,73.14372211]
[1741627413700,73.14372211,119.63,119.61,20.0]
[1741627413926,81.50302211,119.63,119.58,73.14372211]
[1741627414124,81.50302211,119.63,119.57,8.3632]
[1741627414331,8.3593,119.63,119.58,73.14372211]
[1741627414500,91.79337097,119.62,119.57,73.14372211]
[1741627414822,73.14372211,119.61,119.56,73.14372211]
[1741627415030,73.14372211,119.61,119.53,103.8]
[1741627415031,73.14372211,119.59,119.5,103.863]
[1741627415212,86.92372211,119.58,119.53,73.14372211]
[1741627415409,13.78,119.58,119.53,73.14372211]
[1741627415600,91.79337097,119.57,119.52,73.14372211]
[1741627415800,73.14372211,119.57,119.52,73.14372211]
[1741627416441,73.14372211,119.57,119.51,73.20672211]
[1741627416599,18.64964886,119.55,119.51,73.20672211]
[1741627416801,294.50372211,119.54,119.51,0.063]
[1741627417401,221.36,119.54,119.51,73.20672211]
[1741627417612,221.36,119.54,119.53,73.14372211]
[1741627418023,221.36,119.54,119.52,73.14372211]
[1741627418199,221.36,119.54,119.51,73.20672211]
[1741627418405,229.7254,119.54,119.51,0.063]
[1741627418733,92.07769411,119.52,119.5,0.063]
[1741627418908,105.57337097,119.51,119.5,0.063]
[1741627419505,105.85769411,119.51,119.5,0.063]
[1741627419830,0.28432314,119.5,119.42,103.8]
[1741627420128,73.14372211,119.47,119.42,73.14372211]
[1741627420334,73.14372211,119.48,119.43,73.14372211]
[1741627420531,22.1475,119.51,119.47,73.14372211]
[1741627420532,32.42964886,119.51,119.47,73.14372211]
[1741627420711,18.933972,119.53,119.48,73.14372211]
[1741627420912,173.87769411,119.53,119.48,73.14372211]
[1741627421119,246.1009,119.54,119.49,73.14372211]
[1741627421318,246.1009,119.54,119.46,91.79337097]
[1741627421319,246.1009,119.54,119.51,73.14372211]
[1741627421530,246.1009,119.54,119.5,73.14372211]
[1741627421726,91.79337097,119.53,119.47,73.14372211]
[1741627422207,73.14372211,119.52,119.46,73.14372211]
[1741627422535,18.64964886,119.53,119.48,93.14372211]
[1741627422707,73.14372211,119.52,119.48,20.0]
[1741627422907,73.14372211,119.51,119.46,73.14372211]
[1741627423116,73.14372211,119.51,119.47,20.0]
[1741627423313,73.14372211,119.49,119.46,20.0]
[1741627423533,13.8,119.48,119.43,73.14372211]
[1741627423746,13.8,119.48,119.44,73.14372211]
[1741627424428,13.8,119.48,119.46,73.14372211]
[1741627424733,13.8,119.48,119.45,73.14372211]
[1741627424921,13.8,119.48,119.44,81.51602211]
[1741627425120,13.8,119.48,119.45,73.14372211]
[1741627425324,13.8,119.52,119.47,93.14372211]
[1741627425529,13.8,119.52,119.49,73.14372211]
[1741627425916,86.94372211,119.52,119.47,93.14372211]
[1741627426118,86.94372211,119.52,119.47,28.37]
[1741627426419,232.3209,119.54,119.5,73.14372211]
[1741627426732,232.3209,119.54,119.52,73.14372211]
[1741627426934,221.36,119.54,119.5,93.14372211]
[1741627427333,221.36,119.54,119.5,20.0]
[1741627427537,221.36,119.54,119.51,73.14372211]
[1741627427730,221.36,119.54,119.5,20.0]
[1741627427731,221.36,119.54,119.52,73.14372211]
[1741627428043,221.36,119.54,119.53,73.14372211]
[1741627428213,221.36,119.54,119.53,81.50982211]
[1741627428410,221.36,119.54,119.53,185.30982211]
[1741627428817,221.52233695,119.54,119.53,185.30982211]
[1741627429246,221.52233695,119.54,119.53,100.44379411]
[1741627429542,221.52233695,119.54,119.53,175.08511001]
[1741627429924,221.52233695,119.54,119.53,156.15113801]
[1741627430135,221.52233695,119.54,119.53,147.78503801]
[1741627430439,221.52233695,119.54,119.53,81.50982211]
[1741627430638,221.52233695,119.54,119.53,73.14372211]
[1741627430846,221.52233695,119.54,119.52,73.14372211]
[1741627431017,221.52233695,119.54,119.49,73.14372211]
[1741627431018,308.44605906,119.54,119.49,73.14372211]
[1741627431561,91.79337097,119.53,119.48,73.14372211]
[1741627432040,102.87047097,119.53,119.47,20.0]
[1741627432341,73.14372211,119.52,119.46,73.14372211]
[1741627432544,73.14372211,119.51,119.46,73.14372211]
[1741627432720,73.14372211,119.49,119.43,81.51652211]
[1741627432918,5.7946,119.51,119.45,73.14372211]
[1741627433121,5.7946,119.51,119.47,73.14372211]
[1741627433322,11.0771,119.53,119.48,73.14372211]
[1741627433537,11.0771,119.53,119.5,73.14372211]
[1741627434131,84.22082211,119.53,119.49,20.0]
[1741627434328,221.6,119.52,119.49,73.14372211]
[1741627434631,221.6,119.52,119.5,73.14372211]
[1741627434838,221.6,119.52,119.48,73.14372211]
[1741627435226,294.74372211,119.52,119.46,73.14372211]
[1741627435449,294.74372211,119.52,119.47,73.14372211]
[1741627435958,73.14372211,119.5,119.45,73.14372211]
[1741627436132,73.14372211,119.46,119.38,103.8]
[1741627436335,13.78,119.45,119.4,73.14372211]
[1741627436861,86.92372211,119.45,119.39,73.14372211]
[1741627437148,86.92372211,119.45,119.4,73.14372211]
[1741627437149,13.78,119.45,119.4,73.14372211]
[1741627437340,86.92372211,119.45,119.39,73.14372211]
[1741627438355,86.92372211,119.45,119.4,73.14372211]
[1741627438647,13.78,119.45,119.4,73.14372211]
[1741627438853,86.92372211,119.45,119.4,73.14372211]
[1741627439149,13.78,119.45,119.41,73.14372211]
[1741627439355,13.78,119.45,119.43,20.0]
[1741627439539,97.34377097,119.47,119.43,20.0]
[1741627439540,19.3304,119.47,119.44,73.14372211]
[1741627440146,19.3304,119.47,119.35,103.863]
[1741627440147,173.59337097,119.46,119.35,103.863]
[1741627440446,81.8,119.45,119.39,73.14372211]
[1741627440617,81.8,119.45,119.38,73.14372211]
[1741627440618,84.47802211,119.44,119.38,73.14372211]
[1741627440817,221.68,119.43,119.39,73.14372211]
[1741627441045,294.82372211,119.43,119.38,73.14372211]
[1741627441249,294.82372211,119.43,119.38,93.14372211]
[1741627441453,294.82372211,119.43,119.39,20.0]
[1741627441454,221.68,119.43,119.39,20.0]
[1741627441747,221.68,119.43,119.41,73.14372211]
[1741627441927,221.68,119.43,119.42,73.14372211]
[1741627442331,18.933972,119.42,119.35,0.063]
[1741627442644,91.79337097,119.4,119.37,20.0]
[1741627442945,73.14372211,119.4,119.37,20.0]
[1741627443246,235.5,119.39,119.37,20.0]
[1741627443445,91.79337097,119.38,119.35,0.063]
[1741627443744,73.14372211,119.37,119.35,0.063]
[1741627443946,73.14372211,119.36,119.35,0.063]
[1741627444321,87.5261,119.38,119.35,0.063]
[1741627444648,13.78,119.37,119.35,0.063]
[1741627445041,0.28432314,119.36,119.32,0.063]
[1741627445222,81.94216157,119.36,119.32,0.063]
[1741627445422,154.94372211,119.36,119.32,0.063]
[1741627445642,81.8,119.36,119.32,73.20672211]
[1741627445846,73.14372211,119.35,119.32,0.063]
[1741627446043,154.94372211,119.36,119.32,0.063]
[1741627446242,81.8,119.36,119.32,0.063]
[1741627446442,81.8,119.36,119.32,73.20672211]
[1741627446641,81.8,119.36,119.34,20.0]
[1741627446940,13.78,119.37,119.35,20.0]
[1741627447243,86.92372211,119.37,119.32,0.063]
[1741627447432,13.78,119.37,119.35,20.0]
[1741627447633,13.78,119.37,119.35,73.14372211]
[1741627447838,221.72,119.39,119.38,20.0]
[1741627448226,238.9668,119.49,119.41,20.0]
[1741627448426,238.9668,119.49,119.47,73.14372211]
[1741627448654,312.11052211,119.49,119.44,73.14372211]
[1741627448852,312.11052211,119.49,119.34,81.06050567]
[1741627448853,0.15632438,119.45,119.42,73.14372211]
[1741627449049,0.15632438,119.45,119.4,73.14372211]
[1741627449353,0.15632438,119.45,119.4,93.14372211]
[1741627449354,73.30004649,119.45,119.4,93.14372211]
[1741627449561,0.15632438,119.45,119.4,93.14372211]
[1741627449854,73.14372211,119.43,119.39,20.0]
[1741627450243,18.933972,119.42,119.38,73.14372211]
[1741627450449,18.933972,119.42,119.37,73.14372211]
[1741627450638,73.14372211,119.4,119.35,73.14372211]
[1741627450844,221.84,119.39,119.35,73.14372211]
[1741627451047,221.84,119.39,119.36,93.14372211]
[1741627451363,221.84,119.39,119.36,73.14372211]
[1741627451538,221.84,119.39,119.35,73.14372211]
[1741627451936,221.84,119.39,119.36,93.14372211]
[1741627452134,221.84,119.39,119.38,73.14372211]
[1741627452742,221.84,119.39,119.37,20.0]
[1741627452940,221.84,119.39,119.34,112.1788]
[1741627453147,221.84,119.39,119.37,20.0]
[1741627453571,221.84,119.39,119.37,19.92997886]
[1741627453860,221.84,119.39,119.38,73.14372211]
[1741627454082,81.8,119.42,119.38,73.14372211]
[1741627454242,18.64964886,119.44,119.38,73.14372211]
[1741627454243,221.84,119.41,119.38,73.14372211]
[1741627455367,221.84,119.41,119.39,73.14372211]
[1741627455536,221.84,119.41,119.33,103.8]
[1741627455861,221.84,119.41,119.36,73.14372211]
[1741627456163,221.84,119.41,119.39,73.14372211]
[1741627457067,221.84,119.41,119.38,73.14372211]
[1741627457967,221.84,119.41,119.4,73.14372211]
[1741627458271,221.84,119.41,119.4,20.0]
[1741627458754,221.84,119.41,119.4,101.51892211]
[1741627458954,0.15632438,119.45,119.4,214.53461622]
[1741627459162,0.15632438,119.45,119.44,73.14372211]
[1741627459999,6.431e-05,119.5,119.49,20.0]
[1741627460163,0.17272795,119.51,119.5,0.14216157]
[1741627460567,0.17272795,119.51,119.5,8.3682]
[1741627460789,0.17272795,119.51,119.5,154.65564422]
[1741627460975,0.17272795,119.51,119.5,81.65408368]
[1741627461190,2.795e-05,119.51,119.5,154.79780579]
[1741627461973,2.795e-05,119.51,119.5,81.65408368]
[1741627462185,2.795e-05,119.51,119.5,81.51192211]
[1741627462361,2.795e-05,119.51,119.5,73.14372211]
[1741627462566,2.795e-05,119.51,119.49,73.14372211]
[1741627462870,2.795e-05,119.51,119.5,73.14372211]
[1741627463678,0.03002795,119.51,119.5,73.14372211]
[1741627464279,0.03002795,119.51,119.5,73.28588368]
[1741627464484,0.03002795,119.51,119.5,146.42960579]
[1741627464690,0.03002795,119.51,119.5,81.65408368]
[1741627464898,0.03002795,119.51,119.48,103.8]
[1741627465102,0.03002795,119.51,119.5,93.14372211]
[1741627465349,0.03002795,119.51,119.47,73.14372211]
[1741627465489,102.98236049,119.51,119.43,8.3731]
[1741627465792,18.79181043,119.49,119.45,73.14372211]
[1741627465972,81.8,119.5,119.46,73.14372211]
[1741627466164,18.79181043,119.49,119.46,73.14372211]
[1741627466361,81.8,119.5,119.46,73.14372211]
[1741627466955,11.04682795,119.51,119.48,73.14372211]
[1741627467156,0.03002795,119.51,119.46,81.51432211]
[1741627467374,0.03002795,119.51,119.49,73.14372211]
[1741627467574,0.03002795,119.51,119.48,73.14372211]
[1741627467956,0.03002795,119.51,119.49,73.14372211]
[1741627468686,0.15759342,119.5,119.47,20.0]
[1741627468889,92.09312596,119.5,119.45,73.14372211]
[1741627469114,73.28588368,119.48,119.42,8.3735]
[1741627469383,18.79181043,119.46,119.42,73.14372211]
[1741627469574,303.54,119.47,119.43,73.14372211]
[1741627470286,376.68372211,119.47,119.42,73.14372211]
[1741627470585,303.54,119.47,119.43,73.14372211]
[1741627470787,18.79181043,119.46,119.42,73.14372211]
[1741627471170,18.79181043,119.46,119.41,81.51792211]
[1741627471487,18.79181043,119.44,119.39,73.14372211]
[1741627471674,73.14372211,119.43,119.37,8.4401]
[1741627471859,13.76,119.42,119.38,73.14372211]
[1741627472078,13.76,119.42,119.37,8.4401]
[1741627472265,18.79181043,119.41,119.37,0.063]
[1741627472766,18.79181043,119.41,119.37,73.20672211]
[1741627473695,13.76,119.42,119.38,73.14372211]
[1741627473905,13.76,119.42,119.39,73.14372211]
[1741627474067,95.56,119.43,119.4,73.14372211]
[1741627474269,0.28432314,119.42,119.38,73.14372211]
[1741627474474,18.64964886,119.41,119.37,20.063]
[1741627474673,91.79337097,119.41,119.37,0.063]
[1741627474879,18.64964886,119.41,119.37,73.20672211]
[1741627475791,0.14216157,119.42,119.38,73.14372211]
[1741627475986,13.76,119.43,119.4,73.14372211]
[1741627476163,32.40964886,119.43,119.39,73.14372211]
[1741627476367,32.40964886,119.43,119.38,73.14372211]
[1741627476563,105.55337097,119.43,119.37,8.4402]
[1741627476785,105.55337097,119.43,119.38,73.14372211]
[1741627476968,173.73553254,119.42,119.37,73.20672211]
[1741627477173,100.59181043,119.42,119.37,81.58392211]
[1741627477384,100.59181043,119.42,119.38,73.14372211]
[1741627477783,173.73553254,119.42,119.37,73.20672211]
[1741627478096,18.79181043,119.4,119.37,0.063]
[1741627478294,81.8,119.41,119.37,73.20672211]
[1741627478972,18.79181043,119.4,119.37,0.063]
[1741627479368,81.8,119.41,119.38,73.14372211]
[1741627480178,81.8,119.41,119.37,20.063]
[1741627480493,100.733972,119.4,119.37,0.063]
[1741627480702,173.87769411,119.4,119.37,0.063]
[1741627481069,18.79181043,119.38,119.37,0.063]
[1741627481267,221.8,119.38,119.37,0.063]
[1741627481693,240.59181043,119.38,119.37,0.063]
[1741627481892,221.8,119.38,119.37,0.063]
[1741627482396,221.8,119.38,119.37,73.20672211]
[1741627482592,221.8,119.38,119.37,0.063]
[1741627483880,407.06389411,119.38,119.37,0.063]
[1741627484279,406.92173254,119.38,119.37,0.063]
[1741627484489,233.1862,119.38,119.37,0.063]
[1741627484880,0.14216157,119.36,119.32,0.063]
[1741627485095,13.74,119.35,119.32,73.20672211]
[1741627485392,13.74,119.35,119.32,0.063]
[1741627486915,13.74,119.35,119.32,73.20672211]
[1741627487108,18.933972,119.35,119.32,0.063]
[1741627487277,13.74,119.36,119.32,0.063]
[1741627487481,13.74,119.36,119.33,73.14372211]
[1741627487690,13.74,119.36,119.34,73.14372211]
[1741627487902,13.74,119.36,119.33,73.14372211]
[1741627488102,73.14372211,119.34,119.32,0.063]
[1741627488408,91.93553254,119.33,119.32,0.063]
[1741627488911,91.93553254,119.33,119.25,81.59212211]
[1741627488912,100.59181043,119.32,119.25,81.59212211]
[1741627489212,91.93553254,119.3,119.25,0.063]
[1741627489393,235.62,119.29,119.25,0.063]
[1741627489710,235.62,119.29,119.25,73.20672211]
[1741627490183,235.62,119.29,119.25,81.59232211]
[1741627490379,235.62,119.29,119.27,73.14372211]
[1741627490601,221.88,119.29,119.28,73.14372211]
[1741627490908,0.1652797,119.33,119.28,146.28744422]
[1741627491081,0.1652797,119.33,119.3,73.14372211]
[1741627491405,0.30744127,119.33,119.28,93.14372211]
[1741627491586,18.81492856,119.33,119.29,73.14372211]
[1741627491906,0.1652797,119.33,119.32,73.14372211]
[1741627493296,0.1652797,119.33,119.32,81.52452211]
[1741627493884,0.1652797,119.33,119.31,81.52472211]
[1741627494281,0.1652797,119.33,119.32,73.14372211]
[1741627494881,0.1652797,119.33,119.29,20.0]
[1741627495077,0.1652797,119.33,119.29,93.14372211]
[1741627495302,73.30900181,119.33,119.28,73.14372211]
[1741627495805,91.93553254,119.32,119.27,73.14372211]
[1741627496107,91.93553254,119.32,119.26,73.14372211]
[1741627496284,91.93553254,119.32,119.27,73.14372211]
[1741627496613,81.9652797,119.33,119.29,73.14372211]
[1741627496800,81.9652797,119.33,119.25,29.4128]
[1741627496801,18.933972,119.32,119.27,73.14372211]
[1741627496984,18.79181043,119.3,119.26,73.14372211]
[1741627497188,0.14216157,119.3,119.26,73.14372211]
[1741627497384,0.14216157,119.3,119.27,73.14372211]
[1741627498003,154.94372211,119.32,119.27,73.14372211]
[1741627498208,0.1652797,119.33,119.29,73.14372211]
[1741627498407,0.1652797,119.33,119.31,73.14372211]
[1741627499002,0.1652797,119.33,119.3,73.14372211]
[1741627499309,92.10081224,119.33,119.26,20.0]
[1741627499488,92.10081224,119.33,119.28,73.14372211]
[1741627499687,18.95709013,119.33,119.3,73.14372211]
[1741627500008,18.79181043,119.31,119.27,73.14372211]
[1741627500220,105.67553254,119.31,119.25,0.063]
[1741627500415,11.70356157,119.3,119.25,0.063]
[1741627500718,18.79181043,119.29,119.25,0.063]
[1741627501220,18.64964886,119.29,119.26,73.14372211]
[1741627501404,11.5614,119.3,119.26,73.14372211]
[1741627501602,11.5614,119.3,119.25,81.59222211]
[1741627501782,11.5614,119.3,119.26,73.14372211]
[1741627501989,11.5614,119.3,119.28,73.14372211]
[1741627502303,18.79181043,119.29,119.25,8.4487]
[1741627502506,221.96,119.28,119.25,0.063]
[1741627502806,221.96,119.28,119.25,8.4486]
[1741627503011,221.96,119.28,119.27,73.14372211]
[1741627503313,221.96,119.28,119.25,0.063]
[1741627503721,295.10372211,119.28,119.25,0.063]
[1741627504101,18.79181043,119.27,119.25,0.063]
[1741627504309,32.51181043,119.26,119.25,0.063]
[1741627505320,105.79769411,119.26,119.25,0.063]
[1741627505613,91.93553254,119.25,119.23,0.063]
[1741627505813,235.72,119.26,119.23,0.063]
[1741627505999,18.79181043,119.25,119.23,0.063]
[1741627507085,235.76,119.24,119.23,0.063]
[1741627507707,327.83769411,119.24,119.23,0.063]
[1741627508216,235.76,119.24,119.23,0.063]
[1741627508597,254.55181043,119.24,119.23,0.063]
[1741627508794,254.71490683,119.24,119.23,0.063]
[1741627509194,409.80079051,119.24,119.23,0.063]
[1741627509387,409.80079051,119.24,119.2,0.063]
[1741627509687,103.58033254,119.22,119.2,0.063]
[1741627509901,0.14216157,119.21,119.2,0.063]
[1741627510095,81.8,119.21,119.2,0.063]
[1741627510320,100.59181043,119.21,119.2,0.063]
[1741627510502,81.8,119.21,119.2,0.063]
[1741627511101,13.72,119.23,119.2,48.54418827]
[1741627511420,222.2030964,119.24,119.2,0.063]
[1741627511597,222.2030964,119.24,119.23,48.48118827]
[1741627512439,222.2030964,119.24,119.22,48.48118827]
[1741627512920,222.2030964,119.24,119.2,28.4521]
[1741627513118,222.2030964,119.24,119.2,76.93328827]
[1741627513319,222.2030964,119.24,119.21,48.48118827]
[1741627513521,222.2030964,119.24,119.23,48.48118827]
[1741627513819,222.2030964,119.24,119.23,56.86828827]
[1741627514205,222.2030964,119.24,119.23,48.48118827]
[1741627514405,222.2030964,119.24,119.2,20.063]
[1741627514600,18.79181043,119.23,119.2,0.063]
[1741627515109,222.2030964,119.24,119.2,56.93328827]
[1741627515314,222.2030964,119.24,119.21,48.48118827]
[1741627515820,18.79181043,119.23,119.2,0.063]
[1741627516498,67.2729987,119.23,119.2,0.063]
[1741627516690,67.41516027,119.21,119.2,0.063]
[1741627516895,81.13516027,119.21,119.2,0.063]
[1741627517109,80.9929987,119.21,119.2,0.063]
[1741627517302,32.653972,119.21,119.2,0.063]
[1741627517512,81.13516027,119.21,119.2,0.063]
[1741627518897,162.93516027,119.21,119.2,0.063]
[1741627522223,222.18,119.21,119.2,56.93338827]
[1741627522996,222.18,119.21,119.2,48.54418827]
[1741627524717,222.18,119.21,119.2,0.063]
[1741627525021,241.113972,119.21,119.2,0.063]
[1741627525437,289.59516027,119.21,119.2,0.063]
[1741627525928,240.97181043,119.21,119.2,0.063]
[1741627526111,241.113972,119.21,119.2,0.063]
[1741627526308,240.97181043,119.21,119.2,0.063]
[1741627526834,241.113972,119.21,119.2,0.063]
[1741627527029,289.59516027,119.21,119.2,0.063]
[1741627527236,240.97181043,119.21,119.2,0.063]
[1741627527406,222.18,119.21,119.2,48.54418827]
[1741627527832,222.18,119.21,119.2,0.063]
[1741627528013,222.18,119.21,119.2,68.54418827]
[1741627528640,222.18,119.21,119.2,0.063]
[1741627528931,222.36079637,119.21,119.2,0.063]
[1741627529150,241.29476837,119.21,119.2,0.063]
[1741627530024,241.1526068,119.21,119.2,0.063]
[1741627530344,254.99476837,119.21,119.2,0.063]
[1741627530731,254.8526068,119.21,119.2,0.063]
[1741627531035,236.06079637,119.21,119.2,48.54418827]
[1741627532226,254.8526068,119.21,119.2,0.063]
[1741627532835,236.06079637,119.21,119.2,0.063]
[1741627533038,236.06079637,119.21,119.2,48.54418827]
[1741627534453,222.36079637,119.21,119.2,56.93338827]
[1741627535147,222.36079637,119.21,119.2,48.54418827]
[1741627535727,222.36079637,119.21,119.2,0.063]
[1741627536439,241.1526068,119.21,119.2,0.063]
[1741627536622,254.8326068,119.21,119.2,0.063]
[1741627538136,254.97476837,119.21,119.2,0.063]
[1741627538440,0.28432314,119.17,119.14,0.063]
[1741627538642,0.28432314,119.15,119.14,0.063]
[1741627538822,32.47181043,119.15,119.14,0.063]
[1741627539022,13.68,119.15,119.14,0.063]
[1741627539232,0.14216157,119.15,119.14,0.063]
[1741627539440,48.76551141,119.15,119.14,0.063]
[1741627539645,82.08432314,119.15,119.14,0.063]
[1741627539827,81.94216157,119.15,119.14,0.063]
[1741627540150,48.62334984,119.15,119.14,0.063]
[1741627540352,62.44551141,119.15,119.14,0.063]
[1741627540651,13.96432314,119.15,119.14,0.063]
[1741627541148,18.933972,119.13,119.12,0.32385531]
[1741627541317,67.41516027,119.13,119.12,0.32385531]
[1741627542143,67.41516027,119.13,119.11,0.29146977]
[1741627542144,0.28432314,119.12,119.11,0.29146977]
[1741627542348,289.67516027,119.12,119.11,0.58293954]
[1741627542649,22.28432314,119.09,119.08,0.26702884]
[1741627542827,0.28432314,119.04,118.97,48.48118827]
[1741627543029,67.41516027,119.04,119.03,0.13057846]
[1741627543245,303.35516027,119.04,119.03,0.13057846]
[1741627543422,254.58964886,119.04,119.03,0.13057846]
[1741627543753,222.26,119.04,119.03,20.13057846]
[1741627543930,222.26,119.06,119.04,20.0]
[1741627544729,222.26,119.06,119.05,48.48118827]
[1741627545125,222.34,119.06,119.05,48.48118827]
[1741627545327,0.14216157,119.08,119.05,48.48118827]
[1741627545528,222.34,119.07,119.05,48.48118827]
[1741627546142,18.79181043,119.06,119.04,1.2152579]
[1741627546347,32.47181043,119.06,119.05,20.0]
[1741627546659,62.78919363,119.06,119.02,48.75540303]
[1741627547054,32.47181043,119.06,119.02,48.48118827]
[1741627547548,13.68,119.06,119.04,48.48118827]
[1741627547745,13.68,119.06,119.05,48.48118827]
[1741627548249,222.34,119.07,119.05,48.48118827]
[1741627548630,222.34,119.07,119.05,56.88048827]
[1741627548847,0.17204171,119.06,119.05,56.88048827]
[1741627549256,0.17204171,119.06,119.05,48.48118827]
[1741627549428,0.17204171,119.06,119.05,68.48118827]
[1741627550657,4.171e-05,119.06,119.05,77.02314984]
[1741627550833,0.18036647,119.08,119.05,98.02264984]
[1741627551155,6.647e-05,119.08,119.07,48.48118827]
[1741627552159,6.647e-05,119.08,119.07,20.0]
[1741627552458,6.647e-05,119.08,119.07,68.48118827]
[1741627552945,6.647e-05,119.08,119.07,76.87958827]
[1741627554361,6.647e-05,119.08,119.07,28.3984]
[1741627554543,6.647e-05,119.08,119.07,76.87958827]
[1741627555237,6.647e-05,119.08,119.05,48.51118827]
[1741627555833,6.647e-05,119.08,119.05,56.91078827]
[1741627556153,6.647e-05,119.08,119.05,0.03]
[1741627556355,6.647e-05,119.08,119.06,48.48118827]
[1741627556541,13.66,119.07,119.05,68.51118827]
[1741627556750,13.66,119.07,119.05,0.03]
[1741627557462,13.66,119.07,119.05,48.51118827]
[1741627557758,13.66,119.07,119.05,0.03]
[1741627558052,18.79181043,119.06,119.05,0.03]
[1741627558254,18.933972,119.06,119.05,0.03]
[1741627559061,67.41516027,119.06,119.05,0.03]
[1741627559561,75.81426027,119.06,119.05,0.03]
[1741627559739,0.14216157,119.05,119.02,0.14807598]
[1741627560059,18.79181043,119.03,119.02,0.14807598]
[1741627560360,0.14216157,119.05,119.02,48.62926425]
[1741627560558,18.64964886,119.06,119.03,48.48118827]
[1741627560864,222.46,119.05,119.03,48.48118827]
[1741627561042,18.79181043,119.04,119.02,0.14807598]
[1741627561251,222.46,119.05,119.03,48.48118827]
[1741627561452,222.46,119.05,119.04,68.48118827]
[1741627562258,222.46,119.05,119.04,116.96237654]
[1741627562764,222.46,119.05,119.04,68.48118827]
[1741627563161,222.46,119.05,119.04,68.14695037]